Cogmind - Beta 11.1 @@@ ROGUE MODE // 2022.05.12 @ 16:51:00 Player: Olga Result: Destroyed by G-50 Soldier with Heavy Laser Performance ------------- Evolutions (3) 1500 Regions Visited (6) 1200 Robots Destroyed (86) 430 Value Destroyed (2686) 2686 Prototype IDs (1) 20 Alien Tech Used (0) 0 Bonus (790) 790 TOTAL SCORE: 6626 Bonus ------- Follower Combat Kills 90 Entered Garrisons 200 Used RIF Installer 500 Cogmind --------- Core Integrity 0/700 Matter 2/300 Energy 21/100 System Corruption 0% Temperature Warning (300) Movement Treading (330) Ox2 Location -7/Factory Parts ------- > --- POWER (1) -------- (None) > --- PROPULSION (2) --- Armored Treads Armored Treads > --- UTILITY (8) ------ Huge Storage Unit Target Analyzer Improved Light Armor Plating Hacking Suite System Shield Relay Coupler [Grunt] (16) Relay Coupler [Sentry] (5) > --- WEAPON (2) ------- Gatling Laser Proton Missile Launcher > --- INVENTORY (25) --- Nuclear Core Armored Treads Armored Treads Armored Treads Armored Treads Improved Heat Sink Improved Shield Generator Relay Coupler [Swarmer] (31) Relay Coupler [Cutter] (30) Relay Coupler [Grunt] (22) Relay Coupler [Heavy] (11) System Restoration Module System Restoration Module Shock Rifle Heavy Laser Heavy Laser Light EM Pulse Cannon Heavy Assault Rifle Advanced Assault Cannon Advanced Assault Cannon Missile Launcher Remote Datajack Remote Datajack Improved Remote Datajack Peak State ------------ > --- POWER ------------ Micro Nuclear Core > --- PROPULSION ------- Armored Huge Wheel > --- UTILITY ---------- Improved Heat Sink Huge Storage Unit Target Analyzer Advanced ECM Suite Hacking Suite System Shield Relay Coupler [Grunt] Relay Coupler [Sentry] > --- WEAPON ----------- Flak Cannon Advanced Assault Cannon > --- INVENTORY -------- Nuclear Core Compact Wheel Improved Heat Sink Improved Shield Generator Relay Coupler [NC] Relay Coupler [Swarmer] Relay Coupler [Cutter] Relay Coupler [Grunt] Relay Coupler [Heavy] System Restoration Module System Restoration Module System Restoration Module System Restoration Module Recalibrator Shock Rifle Shock Rifle Heavy Laser Heavy Laser Heavy Laser Gatling Laser Light EM Pulse Cannon Heavy Assault Rifle Heavy Assault Rifle Grenade Launcher Improved Remote Datajack [Rating: 51] Favorites ----------- Power Heavy Ion Engine Engine Heavy Ion Engine Power Core Light Nuclear Core Propulsion Compact Wheel Treads Light Treads Leg Aluminum Leg Wheel Compact Wheel Utility Huge Storage Unit Device Heat Sink Storage Huge Storage Unit Processor Target Analyzer Hackware System Shield Protection Power Shielding Weapon Heavy Assault Rifle Energy Gun EM Pulse Gun Energy Cannon Heavy Particle Cannon Ballistic Gun Heavy Assault Rifle Ballistic Cannon Advanced Assault Cannon Launcher Grenade Launcher Special Weapon Improved Remote Datajack Special Melee Weapon Datajack Build | -11 -10 -9 -8 -7 -7 -7 ------- Run | Scr Mat Mat Mat Fac Gar Fac Slots Evolved 6 | . . 2 2 2 . . Power . | . . . . . . . Propulsion . | . . . . . . . Utility 6 | . . 2 2 2 . . Weapon . | . . . . . . . Parts Attached 120 | . 15 19 18 20 13 35 Power 9 | . 1 3 . 1 2 2 Engine 7 | . 1 3 . 1 2 . Core 2 | . . . . . . 2 Reactor . | . . . . . . . Propulsion 18 | . 5 2 . 1 5 5 Treads 5 | . 3 . . . . 2 Leg . | . . . . . . . Wheel 13 | . 2 2 . 1 5 3 Hover . | . . . . . . . Flight . | . . . . . . . Utility 48 | . 6 7 6 15 1 13 Device 17 | . 1 2 4 3 . 7 Storage 6 | . 3 2 1 . . . Processor 3 | . . 1 . . . 2 Hackware 5 | . . . . 1 1 3 Protection 17 | . 2 2 1 11 . 1 Artifact . | . . . . . . . Weapon 45 | . 3 7 12 3 5 15 Energy Gun 4 | . . . . . . 4 Energy Cannon 4 | . . . 2 . . 2 Ballistic Gun 19 | . 3 4 6 2 3 1 Ballistic Cannon 5 | . . . 1 1 . 3 Launcher 8 | . . 3 3 . 1 1 Special Weapon 4 | . . . . . . 4 Impact Weapon . | . . . . . . . Slashing Weapon . | . . . . . . . Piercing Weapon . | . . . . . . . Special Melee Weapon 1 | . . . . . 1 . Unidentified Prototypes 1 | . . 1 . . . . Parts Lost 37 | . 2 . 5 4 17 9 Power 5 | . . . . 1 2 2 Propulsion 7 | . . . . . 4 3 Utility 14 | . 1 . 3 2 6 2 Weapon 11 | . 1 . 2 1 5 2 Highest Loss Streak 11 | . 1 . 3 4 11 3 To Critical Strikes . | . . . . . . . Average Slot Usage (%) 97 | . 99 99 98 92 80 89 Engine 10 | . 14 11 9 6 7 . Treads 7 | . 18 . . . . 4 Wheel 14 | . 8 22 18 10 8 8 Device 11 | . 6 10 24 15 6 11 Storage 14 | . 14 19 10 11 7 7 Hackware 3 | . . . . 1 10 28 Protection 11 | . 6 14 17 29 26 . Energy Gun 2 | . 4 . . . . 6 Ballistic Gun 18 | . 23 21 12 13 8 2 Naked Turns . | . . . . . . . Heaviest Build 136 | 12 92 136 108 122 118 103 Greatest Support 40 | 20 40 32 32 32 32 40 Greatest Overweight (x) 30 | . 2 4 3 4 5 30 Average Overweight (x) 2 | . . 3 3 3 3 2 Largest Inventory Capacity 25 | . 25 25 25 25 25 25 Average Capacity 22 | . 18 25 25 25 25 25 Most Carried 25 | . 25 25 25 25 25 25 Average Carried 20 | . 15 24 24 24 22 22 Final Capacity 25 | 8 25 25 25 25 25 25 Final Carried 25 | 6 25 25 25 25 14 24 Class Distribution -------------------- 90% | Mutant 8% | Bothacker-Mutant Dominant Class ---------------- Mutant | -10/Materials Mutant | -9/Materials Mutant | -8/Materials Mutant | -7/Factory Mutant | -7/Garrison Bothacker-Mutant | -7/Factory Resources | -11 -10 -9 -8 -7 -7 -7 ----------- Run | Scr Mat Mat Mat Fac Gar Fac Matter Collected 2493 | 169 337 578 683 110 185 431 Remotely . | . . . . . . . Salvage Created 2699 | . 551 673 577 155 255 488 Parts 187 | . 32 54 46 9 20 26 Haulers Intercepted 7 | . 2 3 1 1 . . Recyclers Shooed 1 | . . . 1 . . . Parts Field Recycled . | . . . . . . . Retrieved Matter . | . . . . . . . Parts Self-Destructed . | . . . . . . . Prevented . | . . . . . . . Kills | -11 -10 -9 -8 -7 -7 -7 ------- Run | Scr Mat Mat Mat Fac Gar Fac Combat Hostiles Destroyed 65 | . 11 14 18 2 11 9 Guns 42 | . 11 11 7 1 7 5 Cannons 11 | . . . 5 1 2 3 AOE 12 | . . 3 6 . 2 1 Classes Destroyed 11 | . 4 3 2 1 1 . Worker 6 | . . 3 . . . 3 Hauler 7 | . 2 3 1 1 . . Recycler 1 | . . 1 . . . . Operator 2 | . . . 2 . . . Watcher 5 | . 2 2 1 . . . Swarmer 26 | . 3 9 6 . 8 . Grunt 22 | . 8 3 9 . 1 1 Sentry 8 | . . 2 2 1 . 3 Specialist 1 | . . . . . 1 . Hunter 3 | . . . 1 . . 2 Programmer 5 | . . . . 1 1 3 Best Kill Streak 6 | . 4 6 5 1 3 3 Combat Bots Only 5 | . 4 4 5 1 3 2 Max Kills in Single Turn 3 | . 1 3 3 1 2 2 Gunslinging 1 | . . . . . 1 . Exploded 3 | . . 2 3 . 2 1 Melee . | . . . . . . . Uniques/NPCs Destroyed . | . . . . . . . Combat | -11 -10 -9 -8 -7 -7 -7 -------- Run | Scr Mat Mat Mat Fac Gar Fac Damage Taken 6463 | . 560 501 1058 231 2473 1640 Core 1089 | . 88 152 138 11 382 318 Absorbed by Shields 30 | . . . . . 30 . Redirected to Shielding 56 | . . 15 34 7 . . Regen/Repaired (Parts) 92 | . 92 . . . . . Core Remaining (%) 75 | 100 64 62 74 . . . Volleys Fired 265 | . 54 61 59 11 37 43 Largest 2 | . 2 2 2 2 2 2 Hottest 144 | . 60 46 131 76 76 144 Shots Fired 480 | . 108 117 103 22 60 70 Gun 401 | . 108 113 66 20 50 44 Cannon 58 | . . . 29 2 9 18 Launcher 14 | . . 4 8 . 1 1 Special 7 | . . . . . . 7 Kinetic 387 | . 91 113 85 22 59 17 Thermal 49 | . . . 5 . . 44 Explosive 13 | . . 4 8 . 1 . Electromagnetic 24 | . 17 . 5 . . 2 Robot Hit Streak 18 | . 18 12 9 7 8 14 Robot Miss Streak 10 | . 4 10 7 3 9 4 Penetration Max 1 | . . . 1 . . . Secondary Targets 4 | . 1 1 1 . 1 . Max Gunslinging Chain 1 | . 1 1 1 . 1 . Shots Hit Robots 315 | . 68 67 70 16 41 53 Core Hits 188 | . 26 29 53 10 45 25 Critical Kills . | . . . . . . . Critical Parts Destroyed 3 | . . 1 . 1 . 1 Critical Strikes 5 | . . 1 . 2 . 2 Destroy 3 | . . 1 . 1 . 1 Blast 2 | . . . . 1 . 1 Melee Attacks 1 | . . . . . 1 . Impact . | . . . . . . . Slashing . | . . . . . . . Piercing . | . . . . . . . Sneak Attacks . | . . . . . . . Combat Hostiles . | . . . . . . . Follow-up Attacks . | . . . . . . . Damage Inflicted 6463 | . 852 1299 1839 311 808 1354 Guns 4108 | . 852 1036 709 248 546 717 Cannons 1051 | . . . 531 63 111 346 Explosions 1288 | . . 263 599 . 135 291 Melee . | . . . . . . . Ramming 16 | . . . . . 16 . Kinetic 3992 | . 686 1036 1032 311 657 270 Thermal 1150 | . . . 123 . . 1027 Explosive 949 | . . 263 551 . 135 . Electromagnetic 356 | . 166 . 133 . . 57 Impact . | . . . . . . . Slashing . | . . . . . . . Piercing . | . . . . . . . Highest Corruption 4 | . . . . . 4 4 Average Corruption 2 | . . . . . 3 2 Corruption Purged 9 | . . . . . . 9 Corruption Blocked . | . . . . . . . Effects 10 | . . . . . 2 8 Message Errors 2 | . . . . . . 2 Matter Fused 2 | . . . . . 1 1 Energy Discharges 2 | . . . . . . 2 Data Loss (minor) 3 | . . . . . . 3 Misfires 1 | . . . . . 1 . Overload Shots . | . . . . . . . Overflow Damage 28 | . . 25 1 . 2 . Projectiles 3 | . . . 1 . 2 . Explosions 25 | . . 25 . . . . Melee . | . . . . . . . Knockbacks 7 | . . . 5 . 1 1 Impact . | . . . . . . . Kinetic 7 | . . . 5 . 1 1 Secondary . | . . . . . . . Self-Inflicted Damage 100 | . . . 33 . 43 24 Shots 4 | . . . 1 . 1 2 Rammed 3 | . . . . . 3 . Targets Rammed 3 | . . . . . 3 . Kicked . | . . . . . . . Crushed . | . . . . . . . Highest Temperature 325 | . 138 10 129 9 17 325 Average Temperature 64 | . 62 10 27 9 8 106 Received Heat Transfer 1629 | . 252 150 360 36 504 327 Siege Activations . | . . . . . . . Robots Corrupted . | . . . . . . . Combat Hostiles . | . . . . . . . Parts Fried . | . . . . . . . Impact Corruptions . | . . . . . . . Robots Melted . | . . . . . . . Combat Hostiles . | . . . . . . . Parts Melted 3 | . . . . . . 3 Heat Transferred 1814 | . . . 161 . . 1653 Parts Sabotaged . | . . . . . . . Parts Stolen . | . . . . . . . Parts Stripped . | . . . . . . . Power Chain Reactions 1 | . . . 1 . . . Missiles Intercepted . | . . . . . . . Alert | -11 -10 -9 -8 -7 -7 -7 ------- Run | Scr Mat Mat Mat Fac Gar Fac Peak Influence 358 | . 165 257 358 166 271 208 Initial 146 | . . 12 105 146 35 109 Average 78 | . 28 136 72 104 167 73 Maximum Alert Level 1 | . . 1 1 . 1 1 Low Security (%) 83 | . 100 60 82 100 51 94 Level 1 16 | . . 39 17 . 48 5 Level 2 . | . . . . . . . Level 3 . | . . . . . . . Level 4 . | . . . . . . . Level 5 . | . . . . . . . High Security . | . . . . . . . Max Security . | . . . . . . . Squads Dispatched 11 | . 2 . 3 1 . 5 Investigation 1 | . 1 . . . . . Extermination 3 | . . . . 1 . 2 Reinforcement 7 | . 1 . 3 . . 3 Assault . | . . . . . . . Garrison . | . . . . . . . Intercept . | . . . . . . . Searches Triggered . | . . . . . . . Construction Impeded . | . . . . . . . Haulers Reinforced 1 | . . . . . . 1 Active Scanning Responses . | . . . . . . . Cargo Convoy Interrupts . | . . . . . . . Stealth | -11 -10 -9 -8 -7 -7 -7 --------- Run | Scr Mat Mat Mat Fac Gar Fac Distress Signals 6 | . 1 2 2 . . 1 Communications Jammed . | . . . . . . . Distress Signals . | . . . . . . . Times Spotted 116 | . 27 19 27 3 19 21 Peak Tracking Total 7 | . 6 4 6 1 7 3 Tactical Retreats 5 | . . . 2 . 1 2 Traps | -11 -10 -9 -8 -7 -7 -7 ------- Run | Scr Mat Mat Mat Fac Gar Fac Traps Triggered 5 | . 1 . . . 3 1 Indirectly . | . . . . . . . Trap Hack Attempts . | . . . . . . . Triggered . | . . . . . . . Disarmed . | . . . . . . . Reprogrammed . | . . . . . . . Reused . | . . . . . . . Traps Extracted . | . . . . . . . Installed . | . . . . . . . Triggered . | . . . . . . . Machines | -11 -10 -9 -8 -7 -7 -7 ---------- Run | Scr Mat Mat Mat Fac Gar Fac Machines Disabled 9 | . 2 . 2 . 2 3 Max in Single Turn 2 | . 1 . 1 . 1 2 Garrison Access 1 | . . . . . . 1 Garrison Relay 1 | . . . . . 1 . Machines Sabotaged . | . . . . . . . Garrisons Compromised . | . . . . . . . Overloaded Fab Kills . | . . . . . . . Hacking | -11 -10 -9 -8 -7 -7 -7 --------- Run | Scr Mat Mat Mat Fac Gar Fac Machines Accessed 19 | . 5 3 3 4 . 4 Terminals 13 | . 2 2 3 3 . 3 Fabricators . | . . . . . . . Repair Stations 1 | . 1 . . . . . Recycling Units 3 | . 2 1 . . . . Scanalyzers . | . . . . . . . Garrison Access 2 | . . . . 1 . 1 Total Hacks 35 | . 9 3 9 9 . 5 Successful 18 | . 5 2 6 2 . 3 Failed 17 | . 4 1 3 7 . 2 Catastrophic 5 | . 1 . 1 1 . 2 Database Lockouts . | . . . . . . . Manual 17 | . 3 1 7 6 . . Terminals 26 | . 5 2 9 6 . 4 Fabricators . | . . . . . . . Repair Stations 2 | . 2 . . . . . Recycling Units 3 | . 2 1 . . . . Scanalyzers . | . . . . . . . Garrison Access 4 | . . . . 3 . 1 Terminal Hacks 7 | . 1 1 3 . . 2 Level Access Points 1 | . . . 1 . . . Branch Access Points 1 | . . . . . . 1 Locate Traps 3 | . . 1 1 . . 1 Zone Layout 2 | . 1 . 1 . . . Fabricator Hacks . | . . . . . . . Repair Station Hacks 2 | . 2 . . . . . Scan Component 1 | . 1 . . . . . Repair 1 | . 1 . . . . . Recycling Unit Hacks 2 | . 1 1 . . . . Retrieve Components 2 | . 1 1 . . . . Scanalyzer . | . . . . . . . Garrison Access Hacks 2 | . . . . 1 . 1 Unlock Access 1 | . . . . 1 . . Seal Access 1 | . . . . . . 1 Unauthorized Hacks 5 | . 1 . 3 1 . . Terminals 5 | . 1 . 3 1 . . Track 2 | . . . 2 . . . Operators 3 | . 1 . 1 1 . . Fabricators . | . . . . . . . Repair Stations . | . . . . . . . Recycling Units . | . . . . . . . Scanalyzers . | . . . . . . . Garrison Access . | . . . . . . . Data Cores Recovered 1 | . . . 1 . . . Used 1 | . . . 1 . . . Hacking Detections 15 | . 4 2 3 4 . 2 Full Trace Events . | . . . . . . . Feedback Events . | . . . . . . . Feedback Blocked . | . . . . . . . Robot Schematics Acquired . | . . . . . . . Robots Built . | . . . . . . . Authchips . | . . . . . . . Time . | . . . . . . . Total Robot Build Rating . | . . . . . . . Part Schematics Acquired . | . . . . . . . Parts Built . | . . . . . . . Authchips . | . . . . . . . Time . | . . . . . . . Total Part Build Rating . | . . . . . . . Parts Repaired 1 | . 1 . . . . . Time 26 | . 26 . . . . . Parts Recycled . | . . . . . . . Recycled Matter . | . . . . . . . Retrieved Matter . | . . . . . . . Retrieved Components 9 | . 9 . . . . . Parts Scanalyzed . | . . . . . . . Part Schematics Acquired . | . . . . . . . Parts Damaged . | . . . . . . . Bothacking | -11 -10 -9 -8 -7 -7 -7 ------------ Run | Scr Mat Mat Mat Fac Gar Fac Used RIF Installer 1 | . . . . . 1 . Robots Hacked 5 | . . . . . 1 4 Non-combat 3 | . . . . . . 3 Combat 2 | . . . . . 1 1 Robot Hacks Applied 5 | . . . . . 1 4 overwrite_iff 1 | . . . . . 1 . streamctrl_high 1 | . . . . . . 1 formatsys_low 1 | . . . . . . 1 formatsys_high 2 | . . . . . . 2 Relay Couplers Released 7 | . . . . . 4 3 Machine Destruction 4 | . . . . . 4 . Programmers 3 | . . . . . . 3 Attached 3 | . . . . . 1 2 Fabnet Peak Effective % . | . . . . . . . Robots Rewired . | . . . . . . . Allies Hacked . | . . . . . . . Hacks Repelled . | . . . . . . . Allies | -11 -10 -9 -8 -7 -7 -7 -------- Run | Scr Mat Mat Mat Fac Gar Fac Total Allies 5 | . . . . . 1 4 Largest Group 2 | . . . . . 1 2 Highest-Rated Group 58 | . . . . . 16 58 Highest-Rated Ally 32 | . . . . . 16 32 Total Orders . | . . . . . . . Ally Attacks 15 | . . . . . 5 10 Total Damage 358 | . . . . . 74 284 Kills 3 | . . . . . 1 2 Allies Corrupted . | . . . . . . . Allies Melted . | . . . . . . . Intel | -11 -10 -9 -8 -7 -7 -7 ------- Run | Scr Mat Mat Mat Fac Gar Fac Robot Analysis Total . | . . . . . . . Derelict Logs Recovered . | . . . . . . . Drone Launches . | . . . . . . . Drone Recoveries . | . . . . . . . Exploration | -11 -10 -9 -8 -7 -7 -7 ------------- Run | Scr Mat Mat Mat Fac Gar Fac Turns Passed 17939 | . 6901 5315 2809 629 490 1795 Spaces Moved 2490 | 1 405 300 308 352 234 890 Core 1 | . . . . . . 1 Treads 406 | . 278 . . . . 128 Legs 4 | 1 3 . . . . . Wheels 2079 | . 124 300 308 352 234 761 Hover . | . . . . . . . Flight . | . . . . . . . Fastest Speed 120 | 120 120 130 145 145 130 130 Average Speed 162 | 120 176 154 145 154 148 171 Slowest Speed 1550 | 120 240 160 145 160 175 1550 Overloaded Moves . | . . . . . . . Propulsion Burnouts . | . . . . . . . Robots Hopped . | . . . . . . . Cave-ins Triggered . | . . . . . . . Exploration Rate (%) 28 | 1 63 35 29 10 35 25 Regions Visited 6 Branch Regions . Pre-discovered Areas . | . . . . . . . Known Exits Taken 2 | . . . 1 1 . . Unknown Exits Taken 3 | 1 1 1 . . . . Scrap Searched . | . . . . . . . Spaces Dug . | . . . . . . . Terrain Destroyed 118 | . . 27 60 . 4 27 Melee . | . . . . . . . Projectile 5 | . . . 3 . . 2 AOE 113 | . . 27 57 . 4 25 Terrain Rammed . | . . . . . . . Walls Destroyed . | . . . . . . . Machines Disabled . | . . . . . . . Actions | -11 -10 -9 -8 -7 -7 -7 --------- Run | Scr Mat Mat Mat Fac Gar Fac Total 15939 | . 6487 5040 2567 422 320 1103 Wait 12873 | . 5973 4640 2165 15 3 77 Move 2485 | . 404 299 307 352 233 890 Hop . | . . . . . . . Pick Up 93 | . 27 6 12 6 6 36 Fast Attach 28 | . 3 6 1 11 . 7 Attach 39 | . 2 2 7 2 12 14 Detach 6 | . 1 1 . . . 4 Swap 53 | . 10 11 10 7 1 14 Drop 74 | . 13 14 6 18 5 18 Fire 265 | . 54 61 59 11 37 43 Melee 1 | . . . . . 1 . Ram 3 | . . . . . 3 . Kick . | . . . . . . . Crush . | . . . . . . . Escape Stasis 19 | . . . . . 19 . Rewire . | . . . . . . . Trap . | . . . . . . . Miscellaneous . | . . . . . . . Route ------- -11/Scrapyard -10/Materials (discovered 3 exits: *Mat x2 / [*Min]) -9/Materials (discovered 3 exits: *Mat / *Min x2) -8/Materials (discovered 3 exits: *Fac x3) -7/Factory (discovered 2 exits: *Low / Gar) -7/Garrison -7/Factory (discovered 4 exits: *Sto x2 / Low x2) History --------- Turn | Location | Event 1 | -11/Scrapyard | Discovered new exit (range 0) 1 | -11/Scrapyard | Entered Materials 309 | -10/Materials | Build established: Mutant 3240 | -10/Materials | Repaired Lgt. Treads 5092 | -10/Materials | Discovered new exit (range 4) 5928 | -10/Materials | Discovered new exit (range 16) 6717 | -10/Materials | Discovered new exit (range 5) 6902 | -10/Materials | Entered another Materials area 6902 | -9/Materials | Evolved 2 slots: Utility x2 9137 | -9/Materials | Discovered new exit (range 11) 10184 | -9/Materials | Discovered new exit (range 10) 10429 | -9/Materials | Identified exit to Mines 11529 | -9/Materials | Discovered new exit (range 15) 12217 | -9/Materials | Entered another Materials area 12217 | -8/Materials | Evolved 2 slots: Utility x2 13623 | -8/Materials | Lost 3 parts (1u2w) 14499 | -8/Materials | Identified exit to Factory 15026 | -8/Materials | Entered Factory 15026 | -7/Factory | Evolved 2 slots: Utility x2 15078 | -7/Factory | Discovered new exit (range 10) 15121 | -7/Factory | Lost 4 parts (1p2u1w) 15655 | -7/Factory | Identified exit to Garrison 15655 | -7/Factory | Entered Garrison 15663 | -7/Garrison | Installed Relay Interface Framework 15718 | -7/Garrison | Triggered checkpoint 15775 | -7/Garrison | Garrison Relay disabled 15866 | -7/Garrison | Triggered checkpoint 15875 | -7/Garrison | Triggered checkpoint 16011 | -7/Garrison | Lost 4 parts (3u1w) 16107 | -7/Garrison | Core integrity fell below 50% 16134 | -7/Garrison | Discovered new exit (range 8) 16140 | -7/Garrison | Lost 11 parts (1p4n3u3w) 16145 | -7/Garrison | Entered Factory 16345 | -7/Factory | Discovered new exit (range 7) 16813 | -7/Factory | Core integrity fell below 20% 16856 | -7/Factory | Build established: Bothacker-Mutant 17646 | -7/Factory | Identified exit to Storage 17646 | -7/Factory | Identified exit to Lower Caves 17940 | -7/Factory | Destroyed by G-50 Soldier with Heavy Laser Last Messages --------------- 17773_ W-25 Informer sends out distress signal. 17788_ K-01 Serf collects debris. 17825_ Slug penetrates Wall. 17831_ Penetrated by Slug. 17837_ Slug penetrates Door. 17838_ H-55 Commando destroyed. 17841_ Acquired 44 matter. 17847_ Acquired Targeting Computer. 17867_ R-06 Scavenger collects Gauss Rifle. 17907_ K-01 Serf collects debris. 17914_ Targeting Computer destroyed. 17923_ System Restoration Module destroyed. 17924_ Y-54 Guardian Flak Gun blasted off. 17926_ U-05 Engineer builds a Wall. 17927_ Y-54 Guardian heat damages Imp. Light Armor Plating, Lgt. Treads. 17928_ Y-54 Guardian destroyed. 17930_ Lgt. Nuclear Core destroyed. 17937_ Door malfunctions. 17937_ Y-54 Guardian destroyed. 17937_ Fabricator disabled. Map ----- +----------------------------------------------------+ | " ""T"" # #???????????+ #?# " | | " """"" # #???????????# """" """" ### ! " | | # #???????????# """" """" [+ + | | #####+#### #???????????# """" """" ### """T"" | | #???# #??# #???????????# """" """" #?######## | | #???# #??# #???????????# #????????? | | #???# #??# #???????????# """" #????????? | | #???# #??#######???????????# """" #????????? | | ##### #????????????????????# """" "" "" #????????? | | #????????????????????# """" ""S"" #????????? | | #????????????????????? """" #????????? | | #?????????????????????#############????????? | | #??????????????????????????????????????????? | | #????????###?????????????????##########????? | | #????#??# ???????????????? ###### | | #??? #??# ???????????????? # | | #### #??# ?#????????????? """ """ # T"! | | #??# ?# ???????????# """ """ + " | | #??# # ???????????# """ """ # | | #??? # ???????????# # ] | | ######;;;;; #??????????# ## # | | # ! ; ??????????# ## # | | # ; ;????????###########+## | | # %;=;#########T ######## # | | # " [[;%! u # | | # " =;g @ ##### ###+## | | ########## # " ; #??# ???? | | ?????????? + " ]% ]; #??# ?? | | ???????????# g ;;;###############??# | | ???????????####;;;;;;; ?????????????????# | | ??????????????#### # #! ?????????????????# | | ?????????????????#?### ?????????????????# | | ?????????????????????# ??????????????????# | | ??????????????????????#???????????????????######## | | | | | | | | | | | | | | | | | | | | | | | | | | | | | | | | | +----------------------------------------------------+ Best States ------------- Heat Dissipation 70 Energy Generation 16 Energy Capacity 290 Matter Stores 363 Matter Capacity 500 Sight Range 16 Robot Scan Range 14 Terrain Scan Density 10 ECM Strength 2 Armor Coverage 975 Power Shielding 66 Evasion (%) 40 Targeting Accuracy 5 Target Analysis 5 Recoil Reduction 2 Offensive Hacking 10 Defensive Hacking 10 Relay Coupler Types 3 Relay Coupler Value 39 Trap Extractor Capacity 4 Item Schematics ----------------- None Robot Schematics ------------------ None Fabricated ------------ Nothing Alien Tech Used ----------------- None Achievements -------------- Assimilation Complete Challenges ------------ None Game ------ Seed SurveybotSystemRailgun Manual? 0 Play Time 01:07:48 Cumulative 250.3 hours Start 2022.05.12 @ 15:36:39 End 2022.05.12 @ 16:51:00 Sessions 1 Manual Loads 0 Difficulty Rogue Special Mode None Game No. 341 Rogue 338 Adventurer 0 Explorer 3 Win Type - Total 8 Types 8/0/0/0/0/0/0/0/0 Lore% 71 Gallery% 75 Achievement% 62 Wizard Run 0 Options --------- ASCII 1 Keyboard 1 Movement Vi Keybinds 0 Fullscreen 1 Font 18/SmallcapsGlow Map View 76x50 Tactical HUD 1 Map Filters NONE Filters NONE Steam 1 RUN: b557e13f-0aeb-416e-9939-b9d6fe2b760a